bitfinex/quotes_ETHUSD_20250517
["timestamp","ask_amount","ask_price","bid_price","bid_amount"]
[1747477180309,4.02569025,2484.1,2483.8,8.12121961]
[1747477181913,4.02569025,2484.1,2483.8,7.644]
[1747477182642,4.02551022,2484.2,2483.8,7.644]
[1747477183043,18.46452734,2484.3,2484.0,0.7964]
[1747477183443,18.46446484,2484.3,2484.0,0.7964]
[1747477183757,10.81646484,2484.3,2484.0,0.7964]
[1747477183956,4.02545776,2484.2,2484.0,0.7964]
[1747477185632,4.02560283,2484.1,2484.0,0.7964]
[1747477185954,4.02550229,2484.2,2484.0,0.7964]
[1747477186453,4.02560283,2484.1,2484.0,0.7964]
[1747477187459,4.02586336,2484.0,2483.8,8.88241961]
[1747477188763,4.02592696,2483.9,2483.8,0.47721961]
[1747477188967,4.02592696,2483.9,2483.8,8.11321961]
[1747477189761,4.02594324,2483.9,2483.7,7.636]
[1747477190461,4.02608905,2483.8,2483.7,7.636]
[1747477192139,4.02625115,2483.7,2483.6,8.11321961]
[1747477192855,4.02624746,2483.8,2483.6,8.11321961]
[1747477193057,4.02625115,2483.7,2483.6,8.11321961]
[1747477196596,4.02619657,2483.8,2483.6,8.11321961]
[1747477196883,4.02625115,2483.7,2483.6,7.636]
[1747477198090,4.02616162,2483.8,2483.6,7.636]
[1747477198806,4.02588195,2484.0,2483.6,7.636]
[1747477199087,4.02625115,2483.7,2483.4,1.30571961]
[1747477199254,4.02625115,2483.7,2483.5,7.636]
[1747477199454,4.02641327,2483.6,2483.5,7.636]
[1747477200390,4.02657539,2483.5,2483.4,0.47721961]
[1747477200592,12.48947539,2483.5,2483.4,0.47721961]
[1747477202093,0.80525505,2483.6,2483.4,0.47721961]
[1747477202401,4.02664346,2483.5,2483.3,0.8285]
[1747477202593,7.636,2483.6,2483.2,7.636]
[1747477202898,4.02682814,2483.4,2483.2,7.636]
[1747477203466,4.02646397,2483.6,2483.2,7.636]
[1747477203661,10.81733295,2483.8,2483.4,0.8285]
[1747477204403,4.0262942,2483.7,2483.4,0.8285]
[1747477206292,6.79115503,2483.8,2483.7,4.02625115]
[1747477206493,6.79115503,2483.8,2483.7,13.04175115]
[1747477206802,10.81579545,2484.7,2484.2,4.0252973]
[1747477206978,10.81579545,2484.7,2484.3,7.637]
[1747477207312,4.02544078,2484.2,2483.9,0.8285]
[1747477207464,4.85190901,2484.5,2484.0,7.637]
[1747477207668,4.02525362,2484.4,2484.0,7.637]
[1747477207897,4.85190901,2484.5,2484.0,7.637]
[1747477207898,4.02529254,2484.3,2484.0,7.637]
[1747477208063,4.02504225,2484.5,2484.0,7.637]
[1747477208268,11.66688946,2484.6,2484.0,12.91179228]
[1747477208484,4.0249701,2484.5,2484.0,13.38904625]
[1747477210300,10.81587873,2484.7,2484.2,4.02530652]
[1747477210465,4.02479272,2484.6,2484.1,0.8285]
[1747477210660,6.79115503,2484.7,2484.1,7.636]
[1747477210863,4.02533095,2484.3,2484.0,0.47721961]
[1747477211065,4.85213298,2484.4,2484.1,7.636]
[1747477211475,4.02535343,2484.3,2484.1,7.636]
[1747477211895,4.02518318,2484.4,2484.1,7.636]
[1747477212902,4.02502696,2484.5,2484.1,7.636]
[1747477213075,4.02502696,2484.5,2484.1,8.19968357]
[1747477213398,11.66079677,2484.6,2484.1,8.19968357]
[1747477213597,11.66079677,2484.6,2484.1,11.66160272]
[1747477213598,4.02490905,2484.6,2484.1,11.66160272]
[1747477215582,4.02560283,2484.1,2484.0,0.47721961]
[1747477217411,7.57555503,2484.7,2484.0,1.3248]
[1747477217571,4.02486748,2484.6,2484.1,4.02552899]
[1747477217971,4.02498259,2484.5,2484.0,5.35047811]
[1747477218174,4.02498259,2484.5,2484.1,5.32426641]
[1747477218370,6.79115503,2484.7,2484.1,1.29866772]
[1747477218574,4.02532097,2484.3,2484.0,1.3248]
[1747477218974,4.02502446,2484.5,2484.0,5.35048271]
[1747477219406,4.02512989,2484.4,2484.0,1.3248]
[1747477219606,4.02512989,2484.4,2484.1,7.636]
[1747477220820,4.02504729,2484.5,2484.1,7.636]
[1747477221023,4.02504729,2484.5,2483.7,0.47721961]
[1747477221024,4.02608905,2483.8,2483.7,0.47721961]
[1747477221327,4.81048905,2483.8,2483.7,0.47721961]
[1747477221501,12.81048905,2483.8,2483.7,0.47721961]
[1747477222020,4.02641327,2483.6,2483.5,0.47721961]
[1747477222387,4.79101327,2483.6,2483.5,0.47721961]
[1747477222591,7.15680108,2483.6,2483.5,0.47721961]
[1747477222793,11.68241327,2483.6,2483.5,0.47721961]
[1747477224386,4.02719178,2483.2,2482.9,7.636]
[1747477226525,0.7646,2483.3,2482.8,0.7748]
[1747477226732,4.02721313,2483.2,2482.8,8.4118]
[1747477227090,11.67681926,2483.4,2482.9,4.02753974]
[1747477227287,4.02693254,2483.3,2483.0,1.24393397]
[1747477230734,4.02707022,2483.2,2483.0,1.24393397]
[1747477230924,4.02692598,2483.3,2482.9,7.637]
[1747477231122,4.02698616,2483.3,2482.9,7.637]
[1747477231938,4.02698616,2483.3,2482.9,11.66454475]
[1747477232139,14.79115503,2483.8,2483.0,4.02738443]
[1747477232304,14.79115503,2483.8,2482.9,7.637]
[1747477232305,4.02650127,2483.6,2483.1,5.98385452]
[1747477232506,11.66829962,2483.7,2483.2,4.02697144]
[1747477232507,4.02633183,2483.7,2483.2,4.02697144]
[1747477232834,10.8173935,2483.8,2483.3,4.02688067]
[1747477233030,6.79115503,2483.8,2483.6,0.7908]
[1747477233430,7.648,2484.0,2483.6,0.7908]
[1747477233637,4.02611586,2483.8,2483.6,0.7908]
[1747477234010,4.02602954,2483.9,2483.6,0.7908]
[1747477234915,7.643,2484.1,2483.6,0.7908]
[1747477235150,4.0257835,2484.0,2483.6,0.7908]
[1747477235350,4.02593954,2483.9,2483.6,0.7908]
[1747477235647,11.66862842,2484.1,2483.7,7.638]
[1747477235648,4.02581895,2484.0,2483.7,7.638]
[1747477236222,4.02594723,2483.9,2483.7,7.638]
[1747477236446,0.8304,2483.8,2483.1,0.7766]
[1747477236650,4.02657539,2483.5,2483.4,7.638]
[1747477236850,4.02657539,2483.5,2483.2,0.47721961]
[1747477237643,11.67749142,2483.6,2483.2,0.47721961]
[1747477237844,10.81745919,2483.7,2483.2,0.47721961]
[1747477237845,6.79115503,2483.7,2483.2,6.26244537]
[1747477238253,6.79115503,2483.7,2483.4,4.0267286]
[1747477238761,6.79115503,2483.7,2483.3,4.02683441]
[1747477239244,6.79115503,2483.7,2483.4,4.02671958]
[1747477239438,6.79115503,2483.7,2483.5,0.7766]
[1747477240147,6.79115503,2483.7,2483.5,12.92038569]
[1747477240347,6.79115503,2483.7,2483.5,12.44005373]
[1747477240663,4.02658469,2483.5,2483.2,7.637]
[1747477240963,6.79115503,2483.7,2483.2,7.637]
[1747477241131,4.02661878,2483.5,2483.2,7.637]
[1747477241769,4.0265074,2483.6,2483.2,7.637]
[1747477242470,6.79115503,2483.7,2483.2,7.637]
[1747477242471,6.79115503,2483.7,2483.4,4.02665166]
[1747477242969,6.79115503,2483.7,2483.5,0.7718]
[1747477244445,6.79115503,2483.7,2483.3,8.4088]
[1747477244774,4.02659582,2483.5,2483.3,8.4088]
[1747477245481,4.02647742,2483.6,2483.3,8.4088]
[1747477245676,6.79115503,2483.7,2483.3,12.43569219]
[1747477246000,10.81741026,2483.7,2483.3,8.4088]
[1747477246465,6.79115503,2483.7,2483.3,8.4088]
[1747477246670,4.02644155,2483.6,2483.3,8.4088]
[1747477247001,4.02644155,2483.6,2483.3,9.65237694]
[1747477247204,10.81743516,2483.7,2483.3,9.65237694]
[1747477248083,4.02643408,2483.6,2483.3,9.65237694]
[1747477248406,10.81743516,2483.7,2483.3,9.65237694]
[1747477248585,10.81743516,2483.7,2483.3,13.67926536]
[1747477248586,6.79115503,2483.7,2483.3,13.67926536]
[1747477249070,10.81741256,2483.7,2483.3,9.65237694]
[1747477249271,10.81741256,2483.7,2483.3,8.4088]
[1747477250006,10.81741256,2483.7,2483.3,0.7718]
[1747477250308,10.81741256,2483.7,2483.4,7.648]
[1747477253315,10.81741256,2483.7,2483.3,5.27591664]
[1747477253613,10.81741256,2483.7,2483.4,7.648]
[1747477253818,4.02641452,2483.6,2483.4,7.648]
[1747477255230,10.81749547,2483.7,2483.4,7.648]
[1747477255629,10.81749547,2483.7,2483.3,1.24901961]
[1747477255793,10.81749547,2483.7,2483.4,7.648]
[1747477255794,4.02643366,2483.6,2483.4,7.648]
[1747477255994,4.02673753,2483.4,2483.3,0.47721961]
[1747477258935,10.81753097,2483.7,2483.2,12.15219628]
[1747477259117,4.02641687,2483.6,2483.2,12.15219628]
[1747477259321,4.02641687,2483.6,2483.2,0.47721961]
[1747477259522,4.02641687,2483.6,2483.3,7.648]
[1747477261099,4.02661887,2483.5,2483.3,7.648]
[1747477261431,6.79115503,2483.7,2483.2,0.47721961]
[1747477261630,6.79115503,2483.7,2483.2,8.12521961]
[1747477261631,4.02689968,2483.3,2483.2,8.12521961]
[1747477262037,4.02682409,2483.4,2483.2,7.648]
[1747477263518,4.0267091,2483.5,2483.2,7.648]
[1747477263519,4.02665969,2483.5,2483.2,7.648]
[1747477264117,4.02674017,2483.4,2483.2,7.648]
[1747477264328,4.02674017,2483.4,2483.1,0.63568181]
[1747477264521,4.02674017,2483.4,2483.2,7.648]
[1747477265131,4.02665742,2483.5,2483.2,7.648]
[1747477267843,4.02681809,2483.4,2483.2,7.648]
[1747477268342,4.02681809,2483.4,2483.2,8.13009062]
[1747477268907,4.02666074,2483.5,2483.2,8.13109062]
[1747477269207,4.02657056,2483.6,2483.2,8.13109062]
[1747477269403,4.02659527,2483.5,2483.2,8.13109062]
[1747477272163,6.79115503,2483.7,2483.2,9.48634682]
[1747477272368,10.81748046,2483.7,2483.3,4.77729397]
[1747477273233,4.02648926,2483.6,2483.3,0.7504]
[1747477273439,6.79115503,2483.7,2483.2,8.13109062]
[1747477273440,4.02689968,2483.3,2483.2,8.13109062]
[1747477275707,4.02689968,2483.3,2483.2,7.649]
[1747477276183,6.79115503,2483.7,2483.2,7.649]
[1747477276400,4.02650675,2483.6,2483.2,7.649]
[1747477276595,10.81749623,2483.7,2483.3,0.7504]
[1747477277704,6.79115503,2483.7,2483.3,2.44397565]
[1747477277885,6.79115503,2484.1,2483.8,0.7504]
[1747477278062,6.79115503,2484.1,2483.9,7.649]
[1747477279000,4.02520215,2484.4,2483.9,7.649]
[1747477279172,4.02520215,2484.4,2484.0,0.7504]
[1747477279798,2.78795816,2484.7,2484.0,0.7504]
[1747477280004,11.66288552,2484.6,2484.1,4.02552371]
[1747477280200,6.04609114,2484.7,2484.2,0.7504]
[1747477280386,2.02135816,2484.7,2484.3,4.02519505]
[1747477280591,6.04600236,2484.7,2484.4,7.638]
[1747477280977,2.02135816,2484.7,2484.5,0.7504]
[1747477282381,2.02135816,2484.7,2484.6,0.38415349]
[1747477282975,4.02449355,2484.8,2484.6,0.38415349]
[1747477283379,4.02463074,2484.7,2484.6,0.38415349]
[1747477284224,4.02463074,2484.7,2484.5,0.7504]
[1747477285011,4.02457479,2484.8,2484.5,0.7504]
[1747477285170,4.02457479,2484.8,2484.5,2.11024109]
[1747477285807,7.636,2485.1,2484.6,4.02479272]
[1747477286011,4.02406238,2485.1,2484.7,4.82562033]
[1747477286189,4.02381625,2485.3,2484.7,4.82562033]
[1747477286519,11.65982007,2485.3,2484.7,4.82562033]
[1747477286822,4.0238385,2485.2,2484.7,5.84664429]
[1747477287513,2.02135816,2485.5,2485.0,0.7509]
[1747477287678,4.02284978,2485.8,2485.2,4.02374462]
[1747477287874,11.65878111,2485.9,2485.3,4.77448551]
[1747477288074,11.65878111,2485.9,2485.2,1.21023146]
[1747477288075,6.04376464,2486.1,2485.5,0.7509]
[1747477288303,6.04376464,2486.1,2485.6,7.67522997]
[1747477288304,6.04373984,2486.1,2485.6,7.67522997]
[1747477288486,6.04373984,2486.1,2485.6,7.635]
[1747477288487,4.02252769,2486.0,2485.6,7.635]
[1747477288687,4.02281438,2485.9,2485.6,7.635]
[1747477289105,4.02317347,2485.6,2485.5,0.7509]
[1747477289381,4.02291683,2485.8,2485.5,8.3859]
[1747477289996,2.02135816,2486.1,2485.5,9.62685564]
[1747477290220,11.65762342,2486.0,2485.5,13.65009725]
[1747477290996,4.02269025,2485.9,2485.5,9.62685564]
[1747477291325,4.02292831,2485.8,2485.5,9.62685564]
[1747477292316,4.02267895,2486.0,2485.5,13.65008596]
[1747477292626,4.0227227,2485.9,2485.5,9.62685564]
[1747477292783,4.02253205,2486.0,2485.6,1.36502876]
[1747477292986,4.02241992,2486.1,2485.6,1.36502876]
[1747477293220,4.02236545,2486.1,2485.6,5.38813447]
[1747477293407,4.02280026,2485.9,2485.6,1.36502876]
[1747477293614,7.633,2486.2,2485.7,7.634]
[1747477293818,4.02241212,2486.1,2485.7,7.634]
[1747477294201,4.02232312,2486.2,2485.8,0.8017]
[1747477294401,4.02238092,2486.1,2485.8,0.8017]
[1747477294618,7.633,2486.3,2485.8,0.8017]
[1747477295230,7.632,2486.3,2485.8,0.8017]
[1747477295425,0.7535,2486.6,2485.8,6.12540418]
[1747477295727,7.632,2486.4,2485.8,6.12540418]
[1747477296295,8.7535,2486.6,2485.8,6.12540418]
[1747477296490,7.632,2486.5,2485.8,6.12530291]
[1747477296687,7.632,2486.5,2485.8,2.10256298]
[1747477296888,0.7535,2486.8,2486.0,0.8017]
[1747477297207,8.3855,2487.0,2486.2,0.8017]
[1747477297535,15.632,2487.1,2486.4,4.02177945]
[1747477297902,7.632,2487.1,2486.4,4.02177945]
[1747477298527,7.632,2487.1,2486.3,11.65395254]
[1747477298713,9.28106562,2487.1,2486.3,11.65395254]
[1747477298914,9.28106562,2487.1,2486.4,4.02179496]
[1747477299134,9.28106562,2487.1,2486.5,4.02168409]
[1747477299618,9.28106562,2487.1,2486.3,7.632]
[1747477300440,1.64906562,2487.1,2486.3,7.632]
[1747477300640,7.631,2487.0,2486.3,8.93259306]
[1747477300939,7.631,2487.0,2486.3,9.24019399]
[1747477301142,4.0214516,2486.7,2486.2,0.8017]
[1747477301314,8.8176,2486.9,2486.2,7.631]
[1747477301507,0.8176,2486.8,2486.0,8.386]
[1747477301703,8.0,2486.7,2486.0,8.386]
[1747477301930,4.83891904,2486.8,2486.0,8.386]
[1747477302128,4.83891904,2486.8,2486.0,8.68386309]
[1747477302129,2.50358508,2486.8,2486.0,8.68386309]
[1747477302335,7.63,2486.7,2486.1,4.57236]
[1747477302518,7.63,2486.8,2486.2,0.8046]
[1747477303339,4.02187902,2486.4,2485.1,0.8046]
[1747477303516,4.02220255,2486.2,2485.1,12.82857181]
[1747477303711,4.02248541,2486.1,2485.2,2.04585718]
[1747477303917,4.02260991,2486.0,2485.2,2.04585718]
[1747477304112,4.02260991,2486.0,2485.3,7.63]
[1747477304840,4.02260991,2486.0,2485.4,7.63]
[1747477305543,4.0226064,2486.0,2485.4,7.63]
[1747477305932,4.0226064,2486.0,2485.5,0.7844]
[1747477306446,4.02270377,2485.9,2485.5,0.7844]
[1747477306645,4.02258767,2486.0,2485.5,0.7844]
[1747477307429,7.667,2486.1,2485.5,0.7844]
[1747477307754,11.68938948,2486.1,2485.5,0.7844]
[1747477307959,4.0225421,2486.0,2485.5,0.7844]
[1747477308324,4.0225421,2486.0,2485.5,1.79340691]
[1747477308830,11.68936938,2486.1,2485.5,1.79340691]
[1747477308831,11.68940242,2486.1,2485.5,1.79340691]
[1747477309934,4.82127238,2486.3,2485.6,0.55]
[1747477310135,11.67900047,2486.4,2485.7,0.82462735]
[1747477310336,4.02212704,2486.3,2485.8,0.55]
[1747477310540,4.02212704,2486.3,2485.9,7.657]
[1747477311049,4.0220019,2486.4,2486.0,0.7844]
[1747477311455,4.02209031,2486.3,2486.0,0.7844]
[1747477311639,11.67871772,2486.5,2486.0,0.7844]
[1747477311840,4.02183216,2486.5,2486.1,0.84414]
[1747477312037,4.0214794,2486.7,2486.2,1.3344]
[1747477312246,4.02158639,2486.6,2486.2,1.3344]
[1747477313461,4.0214794,2486.7,2486.2,1.3344]
[1747477313662,4.02158728,2486.6,2486.2,1.3344]
[1747477313854,4.02158728,2486.6,2486.3,0.217854]
[1747477314165,4.02158728,2486.6,2486.4,7.657]
[1747477314660,4.02158728,2486.6,2486.0,11.67842092]
[1747477314661,4.02230788,2486.2,2485.9,0.55]
[1747477314869,4.02230788,2486.2,2486.0,7.657]
[1747477315166,12.85438718,2486.8,2486.0,7.657]
[1747477315366,4.02215419,2486.3,2486.0,7.657]
[1747477316771,4.02190118,2486.4,2486.0,7.657]
[1747477316972,4.02218038,2486.3,2486.0,7.657]
[1747477317170,4.02196748,2486.4,2486.0,7.657]
[1747477317342,7.30713526,2486.8,2486.0,7.657]
[1747477317542,4.02200851,2486.4,2486.0,7.657]
[1747477317740,4.02175494,2486.5,2486.0,7.657]
[1747477317945,4.02163427,2486.6,2486.2,0.7844]
[1747477318139,4.02174332,2486.5,2486.2,0.7844]
[1747477318446,4.02174332,2486.5,2486.2,2.08578362]
[1747477318867,4.02164708,2486.6,2486.2,2.08578362]
[1747477319169,4.0210704,2486.9,2486.2,2.08578362]
[1747477319474,4.02195315,2486.4,2486.2,2.08578362]
[1747477320277,4.02204078,2486.3,2485.7,0.64067228]
[1747477320481,0.777,2486.5,2485.8,16.6358]
[1747477320649,4.0223658,2486.1,2485.8,0.7878]
[1747477320850,4.02268796,2485.9,2485.8,0.7878]
[1747477321089,4.02286913,2485.8,2485.6,0.7878]
[1747477321276,4.02286913,2485.8,2485.4,7.656]
[1747477321277,4.02317347,2485.6,2485.4,7.656]
[1747477321558,4.02382102,2485.2,2485.1,8.4438]
[1747477322291,8.0,2485.9,2484.8,18.1286]
[1747477322496,11.68846135,2485.5,2484.9,8.03945172]
[1747477322787,4.02409663,2485.1,2484.9,8.03945172]
[1747477323293,4.02414486,2485.0,2484.9,8.03945172]
[1747477323791,4.02414486,2485.0,2484.9,7.656]
[1747477324461,4.02414486,2485.0,2484.9,8.03930945]
[1747477325401,4.02414486,2485.0,2484.9,8.04030945]
[1747477326892,4.02414486,2485.0,2484.9,0.38330945]
[1747477327080,4.02414486,2485.0,2484.9,8.04030945]
[1747477327390,4.02414486,2485.0,2484.9,0.38330945]
[1747477328261,6.79115503,2485.3,2485.0,0.7996]
[1747477328468,10.81483157,2485.3,2485.1,0.52071019]
[1747477328777,6.79115503,2485.3,2485.1,4.02395401]
[1747477328975,6.79115503,2485.3,2485.0,4.82362952]
[1747477329296,14.45115503,2485.8,2485.2,7.658]
[1747477329500,4.02329376,2485.6,2485.2,7.658]
[1747477329803,4.02329376,2485.6,2485.3,0.8208]
[1747477331104,4.02301162,2485.7,2485.3,0.8208]
[1747477331105,14.45115503,2485.8,2485.3,0.8208]
[1747477331409,4.02317347,2485.6,2485.3,0.8208]
[1747477332065,4.02333568,2485.5,2485.3,0.8208]
[1747477332368,4.02365911,2485.3,2485.2,7.608]
[1747477332764,4.02357945,2485.4,2485.2,7.608]
[1747477333193,4.02384532,2485.2,2485.0,0.7996]
[1747477333396,4.02306944,2485.7,2485.1,7.658]
[1747477333397,4.02317347,2485.6,2485.1,7.658]
[1747477333601,4.02357383,2485.4,2485.1,7.658]
[1747477334192,4.02357383,2485.4,2485.1,8.95411628]
[1747477334508,4.02339696,2485.5,2485.1,8.95411628]
[1747477334686,4.02317347,2485.6,2485.1,8.95411628]
[1747477334687,6.79115503,2485.8,2485.2,0.59023672]
[1747477334888,6.79115503,2485.8,2485.3,0.38257508]
[1747477335266,6.79115503,2485.8,2485.3,1.77363544]
[1747477335470,4.0230117,2485.7,2485.3,1.77363544]
[1747477336001,4.0230117,2485.7,2485.3,1.39106036]
[1747477336369,4.02344329,2485.5,2485.1,7.658]
[1747477337705,4.02344329,2485.5,2485.2,0.38248122]
[1747477338404,4.0232116,2485.6,2485.2,0.38248122]
[1747477338595,4.02333665,2485.5,2485.3,7.658]
[1747477339283,4.02324288,2485.6,2485.3,7.658]
[1747477342080,10.81409753,2485.8,2485.4,0.8181]
[1747477343009,4.02302075,2485.7,2485.4,0.8181]
[1747477343213,4.02329758,2485.6,2485.3,7.658]
[1747477343509,4.0233261,2485.6,2485.3,7.658]
[1747477344012,4.0233261,2485.6,2485.2,0.8181]
[1747477344172,4.0233261,2485.6,2485.4,7.644]
[1747477344608,4.02301162,2485.7,2485.4,7.644]
[1747477344907,4.02333534,2485.5,2485.4,7.644]
[1747477345536,4.0230779,2485.7,2485.4,8.0273088]
[1747477345537,4.02318242,2485.6,2485.4,8.0273088]
[1747477346299,6.79115503,2485.8,2485.4,8.0273088]
[1747477346504,6.79115503,2485.8,2485.4,12.05070939]
[1747477346710,6.79115503,2485.8,2485.5,1.2014088]
[1747477346916,10.81401281,2485.8,2485.5,1.2014088]
[1747477347111,6.79115503,2485.8,2485.5,1.2014088]
[1747477347713,6.79115503,2485.8,2485.5,2.48828974]
[1747477348341,10.8140324,2485.8,2485.5,2.48828974]
[1747477348639,10.8140324,2485.8,2485.6,0.3833088]
[1747477348847,6.79115503,2485.8,2485.6,0.3833088]
[1747477349144,10.8140227,2485.8,2485.6,0.3833088]
[1747477349503,10.8140227,2485.8,2485.7,7.644]
[1747477350144,10.8140227,2485.8,2485.7,8.0273088]
[1747477355714,10.8140227,2485.8,2485.7,0.3833088]
[1747477359958,10.8140227,2485.8,2485.7,1.2081088]
[1747477359959,6.79115503,2485.8,2485.7,1.2081088]
[1747477360141,4.02252847,2486.0,2485.7,2.14125356]
[1747477360962,4.02252847,2486.0,2485.7,2.62059236]
[1747477361167,4.02252847,2486.0,2485.8,0.3833088]
[1747477361777,4.02231981,2486.2,2485.8,0.3833088]
[1747477361957,4.02228467,2486.2,2485.8,1.81208408]
[1747477362359,4.02228467,2486.2,2485.9,0.3833088]
[1747477363084,6.79115503,2486.4,2486.0,0.8248]
[1747477363286,19.39435816,2487.2,2486.3,0.8248]
[1747477363287,6.79115503,2486.8,2486.3,0.8248]
[1747477363485,10.81250242,2486.8,2486.3,4.84674579]
[1747477364085,4.02143598,2486.7,2486.3,0.8248]
[1747477365700,4.02141845,2486.7,2486.4,0.3833088]
[1747477367291,4.02141845,2486.7,2486.5,0.3833088]
[1747477367506,10.81249641,2486.8,2486.5,0.3833088]
[1747477367687,4.02146415,2486.7,2486.5,0.3833088]
[1747477368300,4.02146415,2486.7,2486.3,0.8248]
[1747477368618,4.02146415,2486.7,2486.4,0.53262866]
[1747477369024,4.021563,2486.6,2486.4,0.53262866]
[1747477369502,4.0218076,2486.5,2486.3,0.8248]
[1747477369795,4.02169475,2486.6,2486.3,0.8248]
[1747477370003,4.02169475,2486.6,2486.4,0.38233173]
[1747477371499,4.02169475,2486.6,2486.3,0.8248]
[1747477372365,4.0214844,2486.7,2486.3,0.8248]
[1747477372568,6.79115503,2486.8,2486.4,4.02178896]
[1747477372767,6.79115503,2486.8,2486.4,1.3375]
[1747477372997,6.79115503,2486.8,2486.4,5.35930847]
[1747477373189,10.81239971,2486.8,2486.4,5.35930847]
[1747477373391,10.81239971,2486.8,2486.4,8.02765697]
[1747477373781,6.79115503,2486.8,2486.4,8.02765697]
[1747477373980,6.79115503,2486.8,2486.5,4.02163371]
[1747477374306,4.02094569,2487.0,2486.6,7.63]
[1747477374464,4.02064697,2487.2,2486.8,0.7875]
[1747477374465,4.02067027,2487.2,2486.8,0.7875]
[1747477374797,4.02067027,2487.2,2486.8,2.08640001]
[1747477374996,4.02075871,2487.1,2486.8,2.08640001]
[1747477376671,4.02075871,2487.1,2486.9,0.38190351]
[1747477376874,4.02090872,2487.0,2486.9,0.38190351]
[1747477377497,4.02082553,2487.1,2486.9,0.38190351]
[1747477378090,4.02082553,2487.1,2486.8,0.7875]
[1747477378871,4.02095623,2487.0,2486.8,0.7875]
[1747477379373,4.02083887,2487.1,2486.8,0.7875]
[1747477380310,4.02094558,2487.0,2486.7,15.05]
[1747477380510,4.02094558,2487.0,2486.7,18.56254883]
[1747477381109,4.02119927,2486.9,2486.7,18.01254883]
[1747477381407,4.02098743,2487.0,2486.8,7.628]
[1747477381812,4.0210704,2486.9,2486.8,7.628]
[1747477382222,4.0212321,2486.8,2486.7,14.5]
[1747477382383,4.82224981,2487.1,2486.7,7.628]
[1747477382574,4.0212321,2486.8,2486.7,7.628]
[1747477385025,4.02113884,2486.9,2486.7,7.628]
[1747477385228,4.02042375,2487.3,2486.7,8.4571]
[1747477385533,4.02091485,2487.0,2486.7,8.4571]
[1747477388300,4.02069884,2487.2,2486.7,8.4571]
[1747477389536,2.60623159,2487.6,2486.8,0.55]
[1747477389837,4.01986179,2487.7,2487.1,4.84974532]
[1747477389999,4.02000823,2487.6,2487.2,7.628]
[1747477390200,0.8198,2488.0,2487.3,0.55]
[1747477390409,4.01956565,2487.9,2487.4,4.84929139]
[1747477390612,7.626,2488.1,2487.4,0.8291]
[1747477390810,4.0198387,2487.7,2487.4,0.8291]
[1747477391043,4.01970661,2487.8,2487.4,0.8291]
[1747477391248,4.01986552,2487.7,2487.4,0.8291]
[1747477391446,7.626,2488.1,2487.2,0.8291]
[1747477391611,4.02042371,2487.4,2487.3,7.628]
[1747477392005,4.02042371,2487.4,2487.3,22.128]
[1747477392349,4.02042371,2487.4,2487.3,7.628]
[1747477392825,4.02018872,2487.5,2487.3,7.628]
[1747477393825,4.02018872,2487.5,2487.4,0.38247862]
[1747477394928,4.02018872,2487.5,2487.3,7.628]
[1747477396187,4.01961572,2487.8,2487.3,9.6085614]
[1747477396546,4.01980546,2487.7,2487.3,9.6085614]
[1747477397247,4.01980546,2487.7,2487.3,24.1085614]
[1747477397883,4.01980546,2487.7,2487.4,0.38212555]
[1747477399775,4.01980546,2487.7,2487.5,0.38212555]
[1747477400283,4.01968364,2487.8,2487.5,0.38212555]
[1747477400585,6.79115503,2487.9,2487.5,0.38212555]
[1747477400586,6.79115503,2487.9,2487.6,0.783]
[1747477400756,10.81066104,2487.9,2487.6,1.30153191]
[1747477400947,4.0197089,2487.8,2487.6,0.783]
[1747477402064,4.0197089,2487.8,2487.7,7.624]
[1747477404389,4.0197089,2487.8,2487.7,7.623]
[1747477412599,4.22896861,2488.1,2487.8,0.8237]
[1747477412600,0.20980676,2488.1,2487.8,0.8237]
[1747477412895,0.20980676,2488.1,2487.8,1.66837]
[1747477412896,4.2290509,2488.1,2487.8,1.66837]
[1747477413295,4.2290509,2488.1,2487.9,0.38167758]
[1747477413595,4.0192926,2488.0,2487.9,0.38167758]
[1747477417401,4.8176926,2488.0,2487.9,0.38167758]
[1747477417900,0.20980676,2488.1,2487.9,0.38167758]
[1747477418107,4.22909832,2488.1,2487.8,0.8237]
[1747477418268,4.01929156,2488.1,2487.8,0.8237]
[1747477418604,4.0192197,2488.1,2487.8,2.11818911]
[1747477418781,4.01903594,2488.2,2487.8,2.11818911]
[1747477419305,4.01913788,2488.1,2487.8,2.11818911]
[1747477420113,4.01913848,2488.1,2487.8,2.11818911]
[1747477420788,4.01913848,2488.1,2487.9,0.38232767]
[1747477421825,10.81004989,2488.3,2487.9,3.29448993]
[1747477422126,4.01898661,2488.2,2487.9,3.29448993]
[1747477422489,4.01898661,2488.2,2488.0,0.38232767]
[1747477422920,6.79115503,2488.3,2488.0,0.38232767]
[1747477423221,6.79115503,2488.3,2488.1,0.777]
[1747477423522,4.0186481,2488.4,2488.1,1.58608664]
[1747477423886,4.0186481,2488.4,2488.2,7.622]
[1747477424496,4.01880802,2488.3,2488.2,7.622]
[1747477424688,4.01870066,2488.4,2488.2,7.622]
[1747477425322,4.01880802,2488.3,2488.2,7.622]
[1747477425791,4.01896953,2488.2,2488.1,0.80908664]
[1747477425993,4.01896953,2488.2,2488.1,7.622]
[1747477426823,4.01896953,2488.2,2488.1,8.00373267]
[1747477427325,4.01889642,2488.3,2488.1,8.00373267]
[1747477427622,4.01889642,2488.3,2488.1,0.38173267]
[1747477427824,4.01896953,2488.2,2488.1,0.38173267]
[1747477428204,4.01896953,2488.2,2488.0,7.622]
[1747477428205,4.01913106,2488.1,2488.0,7.622]
[1747477429326,4.01913106,2488.1,2487.8,0.4793388]
[1747477429508,4.01913106,2488.1,2488.0,7.622]
[1747477429716,4.01913106,2488.1,2488.0,8.00373753]
[1747477429914,4.01880802,2488.3,2488.0,8.00373753]
[1747477430225,4.01876852,2488.4,2488.0,8.76863753]
[1747477430896,4.01876852,2488.4,2488.1,0.38173753]
[1747477433851,4.01876852,2488.4,2488.1,1.19728505]
[1747477435155,4.01876852,2488.4,2488.2,0.38173753]
[1747477437351,4.0187395,2488.4,2488.2,0.38173753]
[1747477438756,4.01880802,2488.3,2488.2,0.38173753]
[1747477439259,4.01867964,2488.4,2488.2,7.99873753]
[1747477439637,4.01867964,2488.4,2488.2,7.617]
[1747477440157,4.01857376,2488.5,2488.2,7.617]
[1747477440361,4.01848512,2488.5,2488.2,7.617]
[1747477440562,4.01841399,2488.6,2488.2,7.617]